bitfinex/quotes_SOLUSD_20251030
["timestamp","ask_amount","ask_price","bid_price","bid_amount"]
[1761805872172,0.2,194.69,194.64,36.26332652]
[1761805872400,0.2,194.69,194.64,30.52298926]
[1761805872592,0.2,194.69,194.64,31.18298926]
[1761805872871,0.2,194.69,194.64,31.69675826]
[1761805873273,0.2,194.69,194.64,36.83444835]
[1761805873490,1e-08,194.65,194.64,36.83444835]
[1761805873917,1e-08,194.65,194.64,41.91478561]
[1761805874196,1e-08,194.65,194.64,36.83444835]
[1761805874579,1e-08,194.65,194.64,41.91478561]
[1761805874779,1e-08,194.65,194.64,36.83444835]
[1761805875918,1e-08,194.65,194.64,27.04562066]
[1761805876201,1e-08,194.65,194.64,41.91478561]
[1761805876403,0.2,194.69,194.68,30.38082769]
[1761805876715,0.2,194.84,194.73,9.78882769]
[1761805877007,0.2,194.84,194.81,0.14216157]
[1761805877487,0.2,194.84,194.78,21.12882769]
[1761805877488,0.89,194.84,194.78,21.12882769]
[1761805877682,0.89,194.84,194.79,0.14216157]
[1761805878083,0.2,194.84,194.79,0.14216157]
[1761805878384,0.69,194.83,194.79,0.14216157]
[1761805878591,0.2,194.84,194.79,0.82216157]
[1761805878790,0.2,194.84,194.81,9.93098926]
[1761805879708,0.89,194.84,194.81,0.14216157]
[1761805880210,0.2,194.84,194.81,0.14216157]
[1761805880416,0.2,194.84,194.79,0.51337337]
[1761805880597,5.08033726,194.81,194.74,9.78882769]
[1761805880795,5.08033726,194.82,194.74,9.78882769]
[1761805880999,0.69,194.83,194.76,9.78882769]
[1761805881204,0.69,194.83,194.77,0.14216157]
[1761805881407,0.69,194.83,194.77,5.2761803]
[1761805881603,0.69,194.83,194.77,0.14216157]
[1761805881804,5.82272845,194.83,194.77,0.14216157]
[1761805882096,5.08033726,194.82,194.77,0.14216157]
[1761805882290,5.77033726,194.82,194.77,0.14216157]
[1761805882496,0.65,194.81,194.77,0.14216157]
[1761805882696,0.65,194.82,194.77,0.14216157]
[1761805883019,0.65,194.81,194.77,0.14216157]
[1761805883193,0.44471083,194.84,194.78,20.592]
[1761805883398,0.44471083,194.84,194.79,9.93098926]
[1761805883399,0.2,194.84,194.79,9.93098926]
[1761805883601,0.2,194.84,194.81,0.14216157]
[1761805885101,0.85,194.84,194.8,0.14216157]
[1761805885496,0.2,194.84,194.8,10.35585289]
[1761805885707,0.2,194.84,194.8,5.22249883]
[1761805885927,0.65,194.83,194.8,0.14216157]
[1761805886107,0.65,194.83,194.75,5.13478818]
[1761805886308,0.65,194.83,194.76,15.01132652]
[1761805886623,5.08033726,194.82,194.76,15.01132652]
[1761805886797,5.08033726,194.81,194.75,20.592]
[1761805887523,10.21373409,194.81,194.76,0.14216157]
[1761805887904,10.86373409,194.81,194.76,0.14216157]
[1761805888116,0.65,194.8,194.76,0.14216157]
[1761805888302,5.08033726,194.77,194.73,9.78882769]
[1761805888620,5.08033726,194.75,194.69,9.78882769]
[1761805889002,5.08033726,194.75,194.69,10.50882769]
[1761805889326,0.65,194.77,194.62,5.80033726]
[1761805889327,5.08033726,194.7,194.62,5.80033726]
[1761805889521,5.78639187,194.69,194.61,5.13848209]
[1761805889703,5.78639187,194.69,194.62,5.08033726]
[1761805889704,5.73033726,194.69,194.62,5.08033726]
[1761805889897,5.73033726,194.69,194.62,0.72]
[1761805889898,5.08033726,194.66,194.62,0.72]
[1761805890104,5.08033726,194.65,194.6,5.13872155]
[1761805890302,5.08033726,194.64,194.61,20.592]
[1761805890512,5.08033726,194.64,194.62,0.14216157]
[1761805890717,5.08033726,194.64,194.61,20.592]
[1761805890921,5.08033726,194.65,194.61,20.592]
[1761805891223,0.65,194.67,194.62,5.13821806]
[1761805891527,5.08033726,194.66,194.62,5.13821806]
[1761805891723,0.89471083,194.7,194.63,9.93098926]
[1761805892021,5.08033726,194.71,194.65,15.01132652]
[1761805892222,5.08033726,194.68,194.65,0.14216157]
[1761805892413,5.08033726,194.66,194.62,25.73021806]
[1761805894506,5.08033726,194.64,194.6,5.13874383]
[1761805894830,5.08033726,194.64,194.61,0.14216157]
[1761805895034,0.65,194.65,194.61,0.14216157]
[1761805895324,5.08033726,194.64,194.61,5.28058875]
[1761805896223,5.08033726,194.63,194.6,0.14216157]
[1761805896422,5.08033726,194.63,194.57,5.80033726]
[1761805896423,5.08033726,194.62,194.57,5.85934228]
[1761805896622,5.08033726,194.62,194.55,5.14006682]
[1761805896623,5.08033726,194.59,194.55,5.14006682]
[1761805896802,5.08033726,194.58,194.54,5.14031859]
[1761805897129,5.08033726,194.57,194.55,0.14216157]
[1761805897337,5.08033726,194.57,194.54,5.14031859]
[1761805897711,5.08033726,194.58,194.53,14.92942297]
[1761805898121,5.08033726,194.58,194.54,0.14216157]
[1761805898730,5.08033726,194.58,194.54,0.86216157]
[1761805899234,5.08033726,194.55,194.46,5.14238525]
[1761805899413,5.08033726,194.49,194.46,5.14238525]
[1761805899727,5.08033726,194.49,194.45,14.93153789]
[1761805899903,5.08033726,194.49,194.45,15.65153789]
[1761805900102,5.08033726,194.49,194.45,14.93153789]
[1761805901427,5.08033726,194.51,194.46,0.86216157]
[1761805901823,5.08033726,194.5,194.46,0.14216157]
[1761805903044,5.08033726,194.5,194.46,0.86216157]
[1761805903429,7.57302259,194.5,194.47,5.14218131]
[1761805904038,0.24471083,194.53,194.46,5.28449931]
[1761805904242,7.57302259,194.5,194.46,5.28449931]
[1761805904420,0.89471083,194.53,194.46,5.28449931]
[1761805904746,7.57302259,194.49,194.46,5.28449931]
[1761805905242,7.57302259,194.47,194.43,66.74305889]
[1761805905422,7.57302259,194.47,194.42,9.78882769]
[1761805905626,7.57302259,194.47,194.43,0.14216157]
[1761805906727,7.57302259,194.47,194.43,5.1430455]
[1761805907127,7.57302259,194.48,194.44,0.86216157]
[1761805907719,7.57302259,194.49,194.44,0.86216157]
[1761805908143,7.57302259,194.49,194.45,5.1427102]
[1761805908529,7.57302259,194.48,194.45,5.1427102]
[1761805909227,7.57302259,194.49,194.45,5.8627102]
[1761805909438,7.57302259,194.49,194.45,67.4627102]
[1761805910351,7.57302259,194.53,194.47,7.57302259]
[1761805910518,7.57302259,194.49,194.47,61.6]
[1761805910722,7.57302259,194.48,194.45,61.6]
[1761805910942,0.65,194.51,194.45,61.6]
[1761805911142,7.57302259,194.48,194.45,61.6]
[1761805911350,7.57302259,194.49,194.45,61.6]
[1761805911842,7.57302259,194.48,194.45,61.6]
[1761805912231,20.83671083,194.53,194.42,5.86324421]
[1761805912232,7.57302259,194.46,194.42,5.86324421]
[1761805912552,7.57302259,194.48,194.43,9.78882769]
[1761805912767,7.57302259,194.48,194.43,10.44882769]
[1761805912962,7.57302259,194.5,194.44,8.37518416]
[1761805913130,7.57302259,194.51,194.45,17.36185028]
[1761805913329,7.57302259,194.51,194.45,18.02185028]
[1761805913634,7.57302259,194.51,194.45,10.44882769]
[1761805913949,7.57302259,194.5,194.45,10.44882769]
[1761805914149,7.57302259,194.5,194.46,5.14244574]
[1761805914348,7.57302259,194.52,194.47,9.93098926]
[1761805914541,7.57302259,194.52,194.47,10.59098926]
[1761805914735,7.57302259,194.52,194.48,0.66]
[1761805916053,7.57302259,194.5,194.47,9.93098926]
[1761805916353,7.57302259,194.5,194.48,5.1419169]
[1761805917543,7.57302259,194.52,194.48,5.8019169]
[1761805917960,7.57302259,194.53,194.49,0.80216157]
[1761805918161,7.57302259,194.55,194.49,0.80216157]
[1761805918364,7.57302259,194.55,194.5,5.14138817]
[1761805918541,7.57302259,194.54,194.5,5.14138817]
[1761805919056,8.23302259,194.55,194.5,5.14138817]
[1761805919553,8.23302259,194.54,194.5,5.14138817]
[1761805919758,8.23302259,194.54,194.49,0.14216157]
[1761805919759,7.57302259,194.53,194.49,5.28380591]
[1761805919944,7.57302259,194.53,194.49,5.94380591]
[1761805920345,8.23302259,194.52,194.46,10.30307226]
[1761805920551,8.23302259,194.52,194.47,5.28434288]
[1761805920862,7.57302259,194.55,194.49,7.57302259]
[1761805921047,7.57302259,194.55,194.5,0.66]
[1761805921561,7.57302259,194.54,194.5,0.66]
[1761805922267,0.90471083,194.59,194.51,9.93098926]
[1761805922442,7.57302259,194.57,194.52,5.14085955]
[1761805922635,7.57302259,194.56,194.52,5.14085955]
[1761805923135,7.57302259,194.56,194.52,5.80085955]
[1761805923336,7.57302259,194.57,194.52,18.65300842]
[1761805923764,7.57302259,194.59,194.53,8.23302259]
[1761805923958,28.82502259,194.61,194.55,7.57302259]
[1761805924141,7.57302259,194.63,194.56,8.23302259]
[1761805924336,7.57302259,194.63,194.58,17.98746016]
[1761805924535,28.82502259,194.64,194.58,17.98746016]
[1761805924764,8.23302259,194.64,194.58,26.22048275]
[1761805925062,8.23302259,194.66,194.59,8.23302259]
[1761805925253,7.57302259,194.67,194.61,7.57302259]
[1761805925563,0.66,194.68,194.62,9.93098926]
[1761805925865,7.57302259,194.7,194.64,7.57302259]
[1761805926050,7.57302259,194.72,194.66,7.57302259]
[1761805926248,7.57302259,194.72,194.65,8.23302259]
[1761805926564,7.57302259,194.72,194.57,0.66]
[1761805926565,7.57302259,194.66,194.57,0.66]
[1761805926740,7.57302259,194.63,194.58,9.78882769]
[1761805926944,7.57302259,194.64,194.58,17.36185028]
[1761805927142,0.24471083,194.71,194.62,7.57302259]
[1761805927346,7.57302259,194.68,194.63,9.93098926]
[1761805927551,7.57302259,194.68,194.64,0.66]
[1761805927749,0.90471083,194.71,194.64,0.66]
[1761805927750,7.57302259,194.7,194.64,0.66]
[1761805928267,7.57302259,194.7,194.65,9.93098926]
[1761805928568,7.57302259,194.71,194.65,5.13741615]
[1761805928749,8.23302259,194.7,194.64,12.71071169]
[1761805928942,7.57302259,194.67,194.62,5.94033799]
[1761805929266,0.66,194.69,194.63,9.78882769]
[1761805929469,7.57302259,194.68,194.63,9.78882769]
[1761805929663,7.57302259,194.68,194.62,13.51336058]
[1761805930037,7.57302259,194.69,194.63,10.44882769]
[1761805930244,7.57302259,194.69,194.63,18.02185028]
[1761805930444,7.57302259,194.68,194.63,14.92662918]
[1761805930649,7.57302259,194.68,194.63,5.13780149]
[1761805930851,7.57302259,194.69,194.64,0.66]
[1761805931739,0.66,194.71,194.64,0.66]
[1761805931944,7.57302259,194.73,194.66,7.71518416]
[1761805932344,7.57302259,194.73,194.67,0.66]
[1761805932543,7.57302259,194.73,194.68,5.13663447]
[1761805932753,7.57302259,194.72,194.66,0.14216157]
[1761805932952,7.57302259,194.7,194.65,0.66]
[1761805933671,7.57302259,194.7,194.65,5.79738225]
[1761805933974,17.97178044,194.75,194.63,9.93098926]
[1761805933975,0.24471083,194.69,194.63,5.13786181]
[1761805934188,7.57302259,194.68,194.63,5.13786181]
[1761805934478,7.57302259,194.67,194.62,5.80819206]
[1761805934656,7.95989499,194.74,194.62,5.80819206]
[1761805934657,7.57302259,194.66,194.62,5.80819206]
[1761805934852,7.57302259,194.66,194.62,0.67]
[1761805935063,7.57302259,194.66,194.62,5.80819504]
[1761805936255,7.57302259,194.64,194.58,8.24302259]
[1761805936451,7.57302259,194.63,194.58,0.67]
[1761805936646,7.57302259,194.63,194.58,5.80927433]
[1761805936846,7.57302259,194.61,194.58,5.80927433]
[1761805937245,7.57302259,194.62,194.58,5.80927433]
[1761805937451,7.57302259,194.63,194.58,5.80927433]
[1761805937658,7.57302259,194.62,194.57,66.7395316]
[1761805937858,0.49,194.64,194.57,66.7395316]
[1761805937859,7.57302259,194.61,194.57,66.7395316]
[1761805938258,7.57302259,194.62,194.58,0.67]
[1761805938657,7.57302259,194.63,194.59,5.13901022]
[1761805938863,7.57302259,194.63,194.59,5.80901022]
[1761805939572,7.57302259,194.62,194.58,5.13927433]
[1761805939773,7.57302259,194.61,194.57,61.6]
[1761805940152,7.57302259,194.61,194.57,66.73950992]
[1761805940578,7.57302259,194.61,194.57,67.40950992]
[1761805941476,7.57302259,194.62,194.57,67.40950992]
[1761805941860,7.57302259,194.62,194.59,5.13901022]
[1761805942066,20.83671083,194.66,194.59,5.13901022]
[1761805942261,5.13713727,194.67,194.6,8.24302259]
[1761805942578,7.57302259,194.68,194.61,7.57302259]
[1761805942870,28.16502259,194.67,194.61,69.89302259]
[1761805943374,7.57302259,194.68,194.62,10.65098926]
[1761805943873,20.83671083,194.69,194.64,5.13769009]
[1761805943874,7.57302259,194.69,194.64,5.13769009]
[1761805944381,7.57302259,194.7,194.65,0.72]
[1761805944561,7.57302259,194.72,194.65,8.29302259]
[1761805945074,7.57302259,194.72,194.66,0.72]
[1761805945265,7.57302259,194.73,194.66,8.29302259]
[1761805945476,7.81773342,194.75,194.68,7.57302259]
[1761805945660,7.81773342,194.75,194.69,0.72]
[1761805945858,7.57302259,194.73,194.66,0.72]
[1761805946082,7.57302259,194.73,194.66,8.43518416]
[1761805946262,0.49,194.78,194.68,17.50401185]
[1761805946464,7.57302259,194.79,194.72,17.50401185]
[1761805946666,5.13316833,194.82,194.73,7.57302259]
[1761805946857,7.57302259,194.8,194.73,8.29302259]
[1761805947660,7.57302259,194.8,194.74,0.72]
[1761805947875,7.57302259,194.8,194.75,5.13478818]
[1761805948582,7.57302259,194.8,194.72,22.76937301]
[1761805948583,7.57302259,194.78,194.72,9.93098926]
[1761805948906,0.73471083,194.79,194.72,9.93098926]
[1761805948907,7.57302259,194.76,194.72,9.93098926]
[1761805949583,7.57302259,194.76,194.71,5.13567339]
[1761805949761,7.57302259,194.75,194.71,5.13567339]
[1761805950094,5.13440548,194.77,194.71,5.13567339]
[1761805950095,7.57302259,194.76,194.71,5.13567339]
[1761805950278,28.16502259,194.77,194.71,5.85567339]
[1761805950471,7.57302259,194.77,194.72,0.72]
[1761805950880,0.73471083,194.81,194.73,7.57302259]
[1761805950881,7.57302259,194.8,194.73,7.57302259]
[1761805951180,0.24471083,194.81,194.74,7.57302259]
[1761805951181,28.40973342,194.81,194.74,7.57302259]
[1761805951493,28.16502259,194.81,194.74,7.57302259]
[1761805951665,28.16502259,194.81,194.75,0.72]
[1761805951868,28.16502259,194.81,194.76,5.13452454]
[1761805952365,28.16502259,194.81,194.76,5.85452454]
[1761805952791,7.57302259,194.82,194.76,5.13452454]
[1761805953088,7.81773342,194.83,194.77,0.72]
[1761805954071,7.81773342,194.83,194.78,5.13399733]
[1761805954272,7.81773342,194.83,194.75,9.93098926]
[1761805954273,7.57302259,194.81,194.75,9.93098926]
[1761805954572,7.81773342,194.81,194.74,75.02782134]
[1761805954762,7.57302259,194.81,194.75,0.72]
[1761805955166,0.73471083,194.82,194.75,0.72]
[1761805955580,7.57302259,194.81,194.76,5.13452454]
[1761805956094,0.24471083,194.83,194.78,7.57302259]
[1761805956395,33.74216416,194.84,194.77,8.29302259]
[1761805956715,34.23216416,194.84,194.77,8.29302259]
[1761805957202,26.65914157,194.84,194.78,12.70701992]
[1761805957996,34.23216416,194.84,194.77,7.57302259]
[1761805958180,7.57302259,194.82,194.76,61.6]
[1761805958381,0.24471083,194.81,194.76,61.6]
[1761805958605,7.81773342,194.83,194.76,75.0275121]
[1761805958774,0.24471083,194.83,194.77,8.29302259]
[1761805959180,5.13294322,194.82,194.77,0.72]
[1761805959479,12.70596581,194.82,194.76,66.73450895]
[1761805959794,5.13294322,194.82,194.76,69.17302259]
[1761805960401,0.24471083,194.83,194.77,8.29302259]
[1761805960581,25.9246374,194.84,194.79,7.57302259]
[1761805960894,26.16934823,194.84,194.79,7.57302259]
[1761805961092,0.2,194.84,194.78,7.57302259]
[1761805961301,5.33245258,194.84,194.78,7.57302259]
[1761805961480,5.57716341,194.84,194.78,7.57302259]
[1761805961988,5.57716341,194.84,194.79,8.29302259]
[1761805961989,0.2,194.84,194.79,8.29302259]
[1761805962177,0.2,194.84,194.81,7.57302259]
[1761805962695,0.2,194.84,194.81,8.29302259]
[1761805963079,0.2,194.84,194.77,0.51342609]
[1761805963080,0.2,194.84,194.77,5.13422351]
[1761805963395,5.33243511,194.84,194.79,12.70670424]
[1761805963787,12.9054577,194.84,194.8,0.72]
[1761805963984,0.2,194.84,194.8,0.72]
[1761805964310,28.16502259,194.81,194.76,0.72]
[1761805964487,20.592,194.81,194.76,0.72]
[1761805964798,28.16502259,194.81,194.76,0.72]
[1761805965174,12.70649281,194.8,194.74,14.92362651]
[1761805965388,10.20264986,194.8,194.74,5.85479882]
[1761805965611,10.20264986,194.8,194.75,0.72]
[1761805965981,5.06917964,194.79,194.75,0.72]
[1761805967196,5.06917964,194.77,194.74,61.6]
[1761805967995,10.20326263,194.78,194.74,62.32]
[1761805968403,5.06917964,194.76,194.73,61.6]
[1761805968582,5.06917964,194.77,194.73,0.72]
[1761805969096,5.06917964,194.76,194.73,0.72]
[1761805969674,5.06917964,194.77,194.73,5.85531129]
[1761805970077,5.06917964,194.77,194.73,0.72]
[1761805971924,10.20347846,194.77,194.73,0.72]
[1761805972086,5.06917964,194.76,194.73,0.72]
[1761805972601,5.06917964,194.76,194.72,61.6]
[1761805972602,5.06917964,194.74,194.72,61.6]
[1761805972808,5.06917964,194.73,194.72,61.6]
[1761805972989,5.06917964,194.74,194.72,61.6]
[1761805973309,2.02872568,194.74,194.72,61.6]
[1761805973511,2.02872568,194.74,194.69,10.61098926]
[1761805973512,2.02872568,194.73,194.69,61.6]
[1761805973808,2.02872568,194.73,194.7,0.68]
[1761805974781,2.02872568,194.74,194.7,0.68]
[1761805975217,2.02872568,194.75,194.7,0.68]
[1761805975595,2.02872568,194.74,194.7,0.68]
[1761805975889,2.02872568,194.74,194.7,5.81598661]
[1761805976097,7.16359761,194.75,194.7,5.81598661]
[1761805976319,7.16359761,194.75,194.7,5.13598661]
[1761805976507,0.24471083,194.77,194.71,0.68]
[1761805976700,22.62072568,194.77,194.71,64.30872568]
[1761805977137,22.62072568,194.77,194.72,0.68]
[1761805977306,20.592,194.77,194.72,2.70872568]
[1761805977728,20.592,194.77,194.71,63.62872568]
[1761805977923,2.02872568,194.78,194.73,5.81512582]
[1761805978402,25.72581425,194.79,194.74,0.68]
[1761805978608,2.02872568,194.78,194.74,0.68]
[1761805978840,2.02872568,194.78,194.71,66.73577292]
[1761805979048,2.02872568,194.76,194.71,67.41580317]
[1761805979341,2.02872568,194.74,194.71,61.6]
[1761805979504,2.02872568,194.72,194.71,61.6]
[1761805979829,2.02872568,194.72,194.67,62.28]
[1761805980137,2.02872568,194.71,194.68,0.68]
[1761805980818,2.02872568,194.69,194.64,61.6]
[1761805981022,2.02872568,194.68,194.64,66.73768861]
[1761805981223,2.02872568,194.68,194.65,0.68]
[1761805981426,5.07485402,194.68,194.65,0.68]
[1761805982743,5.07485402,194.66,194.61,66.7384354]
[1761805982908,5.1355186,194.73,194.65,5.07485402]
[1761805983108,5.07485402,194.72,194.65,66.67485402]
[1761805983306,5.07485402,194.75,194.69,5.07485402]
[1761805983744,5.07485402,194.75,194.7,0.68]
[1761805984328,0.24471083,194.81,194.74,5.07485402]
[1761805984546,0.2,194.84,194.77,5.07485402]
[1761805984547,5.27485402,194.84,194.77,5.07485402]
[1761805984750,5.07485402,194.8,194.75,0.68]
[1761805985066,5.07485402,194.8,194.73,5.75485402]
[1761805985218,5.07485402,194.8,194.74,0.68]
[1761805985418,0.24471083,194.82,194.74,5.75485402]
[1761805985645,5.07485402,194.81,194.74,5.75485402]
[1761805985851,5.07485402,194.81,194.75,5.75485402]
[1761805986056,5.07485402,194.81,194.76,0.68]
[1761805986222,10.40739301,194.84,194.77,10.20911494]
[1761805986421,5.27485402,194.84,194.77,10.20911494]
[1761805986624,5.27485402,194.84,194.78,0.68]
[1761805986926,5.07485402,194.82,194.78,0.68]
[1761805987129,5.07485402,194.8,194.74,10.62]
[1761805987440,5.07485402,194.79,194.74,5.81505186]
[1761805987939,5.07485402,194.79,194.73,5.27743047]
[1761805988246,10.20833111,194.8,194.74,5.8149804]
[1761805988832,5.31956485,194.79,194.74,5.8149804]
[1761805989230,5.07485402,194.78,194.74,0.68]
[1761805989635,5.07485402,194.77,194.72,66.73556381]
[1761805990150,0.24471083,194.77,194.72,5.81556381]
[1761805990356,5.07485402,194.77,194.72,5.13556381]
[1761805990557,5.07485402,194.8,194.73,5.75485402]
[1761805991054,10.20850091,194.8,194.74,0.68]
[1761805991277,5.07485402,194.78,194.72,10.89041783]
[1761805991467,5.07485402,194.78,194.72,5.81556381]
[1761805991656,5.07485402,194.79,194.73,0.68]
[1761805992756,5.37835772,194.8,194.73,0.68]
[1761805992757,10.20885135,194.78,194.73,0.68]
[1761805992952,5.07485402,194.76,194.7,87.94685402]
[1761805993269,5.07485402,194.75,194.7,0.68]
[1761805993448,5.07485402,194.76,194.7,0.68]
[1761805993982,0.24471083,194.75,194.7,10.89091384]
[1761805994276,5.31956485,194.77,194.7,10.89091384]
[1761805995280,10.45407776,194.77,194.71,0.71]
[1761805996960,10.45407776,194.77,194.71,10.92063847]
[1761805997344,5.37922374,194.77,194.71,10.92063847]
[1761805997549,10.45407776,194.77,194.71,10.92063847]
[1761805997772,5.37922374,194.77,194.72,0.71]
[1761805998276,5.37922374,194.77,194.72,5.8455256]
[1761805998578,5.37922374,194.77,194.73,0.71]
[1761805999456,0.24471083,194.77,194.73,0.71]
[1761805999657,0.24471083,194.78,194.73,0.71]
[1761805999883,5.37876034,194.78,194.73,0.71]
[1761806001497,7.4067277,194.78,194.73,0.71]
[1761806004966,2.51796736,194.77,194.71,61.6]
[1761806005278,2.51796736,194.77,194.71,62.31]
[1761806005983,7.16231438,194.77,194.71,66.73579829]
[1761806006299,2.27267819,194.78,194.72,2.73796736]
[1761806006801,2.27267819,194.78,194.73,0.71]
[1761806006992,2.76267819,194.78,194.71,69.41376565]
[1761806007169,7.89676693,194.78,194.72,5.78546218]
[1761806008278,3.42981804,194.79,194.72,5.78546218]
[1761806008279,24.02181804,194.79,194.75,2.02796736]
[1761806008709,24.02181804,194.79,194.76,0.65]
[1761806009005,24.02181804,194.79,194.75,2.02796736]
[1761806009006,25.72576716,194.79,194.75,0.65]
[1761806009172,20.592,194.79,194.75,0.65]
[1761806009376,20.592,194.79,194.75,7.81261942]
[1761806009783,20.592,194.79,194.76,0.65]
[1761806012613,2.02796736,194.77,194.7,69.41401854]
[1761806012784,0.24471083,194.76,194.7,2.02796736]
[1761806013106,0.24471083,194.76,194.71,0.65]
[1761806013288,0.24471083,194.76,194.71,5.78578543]
[1761806013605,5.37930385,194.76,194.72,0.65]
[1761806014001,7.40727121,194.76,194.72,0.65]
[1761806014203,0.24471083,194.76,194.72,0.65]
[1761806014379,5.7141899,194.78,194.72,7.81354665]
[1761806014585,5.37880829,194.78,194.72,2.67796736]
[1761806014914,8.82032,194.78,194.72,2.67796736]
[1761806015601,10.84828736,194.78,194.72,0.65]
[1761806015805,8.57560917,194.78,194.73,0.65]
[1761806015975,3.44151171,194.78,194.73,2.67796736]
[1761806016177,20.83671083,194.79,194.74,2.02796736]
[1761806016178,24.03351171,194.79,194.74,2.02796736]
[1761806016404,3.44151171,194.79,194.77,2.02796736]
[1761806016588,0.24471083,194.83,194.77,2.02796736]
[1761806016792,20.592,194.81,194.78,0.65]
[1761806017079,20.592,194.81,194.78,2.67796736]
[1761806017526,20.592,194.81,194.7,18.73186944]
[1761806017527,2.02796736,194.79,194.7,0.65]
[1761806017681,2.02796736,194.77,194.7,2.67796736]
[1761806017896,0.24471083,194.76,194.7,2.67796736]
[1761806018092,0.24471083,194.76,194.7,0.65]
[1761806018317,2.27267819,194.78,194.71,2.67796736]
[1761806018814,2.27267819,194.78,194.72,0.65]
[1761806019409,2.27267819,194.78,194.72,5.78555808]
[1761806019410,5.13426092,194.77,194.72,5.78555808]
[1761806019920,7.40670423,194.78,194.73,0.65]
[1761806020084,2.27267819,194.78,194.73,0.65]
[1761806020622,7.40667795,194.78,194.73,0.65]
[1761806021530,2.02796736,194.78,194.74,5.13505186]
[1761806021894,2.02796736,194.78,194.75,0.65]
[1761806022597,7.40643773,194.79,194.75,0.65]
[1761806022991,2.27267819,194.79,194.75,5.78470402]
[1761806023198,24.03441969,194.8,194.75,7.81267138]
[1761806023429,20.592,194.8,194.76,0.65]
[1761806023728,3.44241969,194.81,194.76,0.65]
[1761806023902,7.16127657,194.81,194.76,0.65]
[1761806024314,2.02796736,194.81,194.76,0.65]
[1761806024931,2.27267819,194.81,194.76,0.65]
[1761806025138,2.27267819,194.81,194.77,5.13426092]
[1761806025323,2.27267819,194.81,194.74,12.83750085]
[1761806025324,3.16892942,194.78,194.72,10.58098926]
[1761806025524,3.16892942,194.77,194.72,0.65]
[1761806026117,3.16892942,194.78,194.72,5.78555952]
[1761806026304,0.24471083,194.79,194.72,5.78555952]
[1761806026510,3.16892942,194.78,194.73,0.65]
[1761806027109,8.3029352,194.78,194.73,0.65]
[1761806027314,8.3029352,194.78,194.72,8.30449568]
[1761806027315,3.16892942,194.76,194.71,62.25]
[1761806027519,3.16892942,194.76,194.72,0.65]
[1761806028221,3.41364025,194.77,194.72,0.65]
[1761806028419,3.41364025,194.77,194.72,5.78557757]
[1761806028932,3.41364025,194.77,194.73,0.65]
[1761806029626,8.54799706,194.77,194.72,5.13557757]
[1761806029817,8.54799706,194.77,194.72,5.78557757]
[1761806030636,5.37906764,194.77,194.72,5.78557757]
[1761806030939,0.24471083,194.77,194.72,5.78557757]
[1761806031605,5.37914263,194.77,194.72,0.65]
[1761806031801,9.03807205,194.77,194.72,0.65]
[1761806032037,3.16892942,194.75,194.72,0.65]
[1761806032333,3.16892942,194.76,194.72,0.65]
[1761806032567,0.24471083,194.75,194.72,0.65]
[1761806033638,8.30351654,194.76,194.72,0.65]
[1761806034008,5.13458712,194.76,194.72,0.65]
[1761806034907,5.13458712,194.76,194.72,5.78557196]
[1761806035108,8.54791266,194.77,194.72,5.78557196]
[1761806035327,3.41364025,194.77,194.72,5.78557196]
[1761806036037,0.24471083,194.77,194.72,5.13557196]
[1761806036240,3.16892942,194.78,194.73,0.7]
[1761806036461,3.41364025,194.78,194.73,0.7]
[1761806037069,0.24471083,194.79,194.75,5.13478818]
[1761806037258,0.24471083,194.79,194.76,0.7]
[1761806038268,5.37850856,194.79,194.76,0.7]
[1761806038573,0.24471083,194.79,194.74,9.00395218]
[1761806038745,0.24471083,194.79,194.75,0.7]
[1761806039269,3.41364025,194.79,194.75,0.7]
[1761806039439,5.37846563,194.79,194.75,0.7]
[1761806040257,5.37846563,194.79,194.71,0.7]
[1761806040258,3.16892942,194.76,194.71,0.7]
[1761806040558,3.16892942,194.73,194.69,0.7]
[1761806041135,0.24471083,194.75,194.69,0.7]
[1761806041136,3.16892942,194.74,194.69,0.7]
[1761806041648,3.16892942,194.71,194.67,0.7]
[1761806041867,0.24471083,194.73,194.66,5.13716223]
[1761806042179,0.24471083,194.73,194.67,0.7]
[1761806042180,3.16892942,194.71,194.67,0.7]
[1761806042347,3.41364025,194.7,194.67,0.7]
[1761806042547,3.16892942,194.7,194.67,0.7]
[1761806042747,8.54926693,194.72,194.67,5.83678209]
[1761806043160,8.54926693,194.72,194.68,0.7]